bitfinex-derivatives/quotes_SOLF0:USTF0_20240912
["timestamp","ask_amount","ask_price","bid_price","bid_amount"]
[1726154186594,879.58295,135.12,135.03,1.4103]
[1726154187386,908.07295,135.12,135.03,1.4103]
[1726154187788,3.3313,135.09,135.05,3.3321]
[1726154187995,908.07295,135.12,135.05,3.3321]
[1726154188500,879.58295,135.12,135.06,3.3319]
[1726154188795,879.58295,135.12,135.04,3.6554124]
[1726154189006,879.58295,135.12,135.06,3.3318]
[1726154189391,879.58295,135.12,135.04,3.6554124]
[1726154189590,3.3313,135.09,135.05,3.3321]
[1726154189796,879.58295,135.12,135.04,3.6554124]
[1726154190402,908.07295,135.12,135.04,3.3323]
[1726154190992,908.07295,135.12,135.03,1.4103]
[1726154191401,3.3314,135.09,135.03,1.4103]
[1726154191606,908.07295,135.12,135.03,1.4103]
[1726154192095,28.49,135.1,135.01,2.6185]
[1726154192811,28.49,135.1,135.01,1.2961]
[1726154193294,28.49,135.07,135.01,1.2961]
[1726154193519,28.49,135.07,134.98,1.3659]
[1726154193697,3.3321,135.06,134.98,1.3659]
[1726154193895,3.3321,135.06,135.01,3.3331]
[1726154194198,28.49,135.07,135.01,3.3331]
[1726154194499,3.3321,135.06,135.01,3.3331]
[1726154194893,3.3322,135.05,135.0,3.3334]
[1726154195094,28.49,135.07,134.98,1.3659]
[1726154195300,3.74009626,135.08,135.02,3.3328]
[1726154195497,3.3319,135.07,135.02,3.3328]
[1726154195892,3.69962962,135.08,135.02,3.3328]
[1726154196096,17.78,135.08,135.02,3.3328]
[1726154196399,17.78,135.08,134.98,19.1459]
[1726154196400,21.1117,135.08,134.98,19.1459]
[1726154197002,3.3317,135.08,135.0,17.78]
[1726154197305,3.3313,135.09,135.0,17.78]
[1726154197502,3.3313,135.09,135.01,1.3561]
[1726154197702,21.111,135.1,135.01,1.3561]
[1726154197899,3.331,135.1,135.01,1.3561]
[1726154198104,3.331,135.1,135.06,3.332]
[1726154198303,3.331,135.1,135.04,3.77314471]
[1726154198504,3.331,135.1,135.05,3.332]
[1726154198908,3.331,135.1,135.04,3.74537105]
[1726154199205,3.3308,135.11,135.02,19.1072]
[1726154199612,897.36295,135.12,135.07,3.3317]
[1726154199813,3.3308,135.11,135.07,3.3317]
[1726154200207,897.36295,135.12,135.07,3.3317]
[1726154200403,879.58295,135.12,135.07,3.3317]
[1726154201702,882.91365,135.12,135.07,3.3317]
[1726154202212,879.58295,135.12,135.07,3.3317]
[1726154203311,3.3309,135.11,135.06,3.3319]
[1726154203803,897.36295,135.12,135.02,19.1072]
[1726154205610,3.3312,135.09,135.02,19.1072]
[1726154206916,3.3312,135.09,135.05,3.3322]
[1726154207828,3.331,135.1,135.06,3.3319]
[1726154208920,3.3312,135.09,135.05,3.3321]
[1726154209117,897.36295,135.12,135.02,19.1072]
[1726154209443,3.3315,135.08,135.04,3.3322]
[1726154209805,3.3315,135.08,135.02,19.1072]
[1726154210011,17.78,135.1,135.02,1.3272]
[1726154210208,17.78,135.1,135.01,1.3561]
[1726154210609,17.78,135.1,135.02,3.3328]
[1726154210814,3.3317,135.08,135.01,1.3561]
[1726154211416,3.3319,135.07,135.01,1.3561]
[1726154211614,17.78,135.1,135.01,1.3561]
[1726154212818,3.3319,135.07,135.03,3.3327]
[1726154213017,897.36295,135.12,135.01,19.1361]
[1726154213715,897.36295,135.12,135.02,5.9187324]
[1726154214918,3.3309,135.11,135.06,3.3318]
[1726154215322,897.36295,135.12,135.06,3.3318]
[1726154215516,897.36295,135.12,135.05,3.3321]
[1726154215719,897.36295,135.12,135.05,3.74555687]
[1726154215923,879.58295,135.12,135.03,17.78]
[1726154216326,879.58295,135.12,135.04,1.3971]
[1726154216518,879.58295,135.12,135.05,17.78]
[1726154216826,882.91355,135.12,135.07,3.3317]
[1726154219426,879.58295,135.12,135.09,3.3312]
[1726154219928,882.91355,135.12,135.08,3.3314]
[1726154220129,879.58295,135.12,135.05,19.1141]
[1726154220619,879.58295,135.12,135.08,3.3313]
[1726154221225,882.91355,135.12,135.08,3.3313]
[1726154221424,879.58295,135.12,135.07,3.3316]
[1726154222421,3.3308,135.11,135.07,3.3316]
[1726154222846,3.3311,135.1,135.06,3.3318]
[1726154223041,879.58295,135.12,135.04,5.14062139]
[1726154223042,897.36295,135.12,135.04,5.14062139]
[1726154223442,3.3315,135.09,135.04,3.74352139]
[1726154223743,3.3315,135.09,135.02,5.91869329]
[1726154223939,3.3315,135.09,135.04,3.3324]
[1726154224148,3.3315,135.09,135.04,3.66550677]
[1726154224343,3.3315,135.09,135.02,5.91869329]
[1726154224641,3.3315,135.09,135.04,3.3324]
[1726154224839,17.78,135.1,135.02,5.91869329]
[1726154225042,17.78,135.1,135.04,3.3323]
[1726154225259,17.78,135.1,135.04,7.0933128]
[1726154225440,17.78,135.1,135.04,3.7610128]
[1726154225641,17.78,135.1,135.03,3.3326]
[1726154225839,3.3318,135.07,135.03,3.3326]
[1726154226346,3.332,135.07,135.01,2.7152]
[1726154226549,17.78,135.08,135.01,2.7152]
[1726154226838,3.3319,135.07,135.01,2.7152]
[1726154227237,3.3319,135.07,135.02,5.91902795]
[1726154227551,3.3319,135.07,135.02,9.25182795]
[1726154228251,21.1116,135.08,135.03,3.3327]
[1726154228434,21.1116,135.08,135.02,5.91910458]
[1726154228435,17.78,135.08,135.02,5.91910458]
[1726154228635,17.78,135.08,135.01,1.3561]
[1726154228843,21.54879212,135.08,135.01,1.3561]
[1726154229039,21.54879212,135.08,135.01,7.27579919]
[1726154229240,21.54879212,135.08,135.01,1.3561]
[1726154229549,3.3324,135.05,135.01,7.27579919]
[1726154229736,21.54879212,135.08,135.01,7.27579919]
[1726154230047,3.3327,135.04,135.0,5.91969919]
[1726154230254,3.3327,135.04,134.99,4.6962]
[1726154230451,3.3327,135.04,135.0,5.91991034]
[1726154230640,3.3327,135.04,135.01,5.91991034]
[1726154230838,3.3327,135.04,134.99,4.6962]
[1726154230839,17.78,135.06,135.0,5.91991034]
[1726154231043,17.78,135.06,134.97,7.08659259]
[1726154231241,17.78,135.04,134.95,20.544]
[1726154231444,17.78,135.06,135.0,3.3334]
[1726154231641,17.78,135.06,134.95,20.544]
[1726154231642,21.45787312,135.06,134.99,3.67416932]
[1726154231837,21.45787312,135.06,134.95,20.544]
[1726154231838,3.3331,135.02,134.95,20.544]
[1726154232042,17.78,135.04,134.96,9.2548834]
[1726154232237,3.72565213,135.05,134.97,5.9204834]
[1726154232238,17.78,135.02,134.97,5.9204834]
[1726154232442,17.78,135.02,134.95,2.764]
[1726154233444,3.3335,135.0,134.95,6.0986]
[1726154233848,17.78,135.02,134.95,6.0986]
[1726154234045,17.78,135.02,134.94,1.418]
[1726154234046,17.78,135.02,134.94,3.3349]
[1726154234657,3.3335,135.0,134.95,3.3345]
[1726154235351,17.78,135.02,134.91,20.3818]
[1726154235855,3.3334,135.01,134.93,17.78]
[1726154236252,17.78,135.02,134.93,17.78]
[1726154236558,3.3336,135.0,134.95,3.3345]
[1726154236757,17.78,135.02,134.91,20.3818]
[1726154236953,3.3339,134.99,134.91,20.3818]
[1726154237145,17.78,135.02,134.91,20.3818]
[1726154237344,17.78,135.0,134.91,20.3818]
[1726154237844,3.334,134.98,134.93,3.335]
[1726154238354,17.78,135.0,134.91,20.3818]
[1726154238551,3.334,134.98,134.93,3.335]
[1726154239243,17.78,135.0,134.94,3.3348]
[1726154239458,17.78,135.0,134.91,20.3818]
[1726154240257,3.3341,134.98,134.93,3.3351]
[1726154240448,17.78,135.0,134.91,20.3818]
[1726154240957,3.3339,134.99,134.94,3.3349]
[1726154241147,17.78,135.0,134.94,3.3349]
[1726154242254,17.78,135.0,134.91,2.6018]
[1726154242853,3.3343,134.97,134.93,3.3351]
[1726154243451,3.3345,134.96,134.92,3.3354]
[1726154243655,17.78,134.98,134.87,19.0647]
[1726154244046,3.3352,134.94,134.89,3.336]
[1726154244452,17.78,134.98,134.87,22.69742565]
[1726154244661,3.3346,134.96,134.91,3.3355]
[1726154244850,17.78,134.98,134.91,3.3355]
[1726154245057,3.3346,134.96,134.91,3.3355]
[1726154245353,3.3346,134.96,134.92,3.3354]
[1726154245856,3.3343,134.97,134.87,4.91742565]
[1726154246052,3.3343,134.97,134.91,17.78]
[1726154246453,3.9334,134.99,134.91,17.78]
[1726154246656,3.334,134.98,134.91,17.78]
[1726154246850,19.676,135.0,134.92,3.8731]
[1726154247051,3.3339,134.98,134.94,3.3348]
[1726154247685,3.3339,134.98,134.93,3.3351]
[1726154247863,3.3343,134.97,134.93,3.3351]
[1726154248158,19.676,135.0,134.93,3.335]
[1726154248356,3.3341,134.98,134.93,3.335]
[1726154248556,19.676,135.0,134.92,3.8731]
[1726154248757,19.676,135.0,134.94,3.3349]
[1726154248951,19.676,135.0,134.92,3.8731]
[1726154250258,3.334,134.98,134.93,3.3351]
[1726154250460,3.334,134.98,134.92,3.8731]
[1726154250870,17.78,135.02,134.92,3.8731]
[1726154251457,17.78,135.0,134.92,3.8731]
[1726154251862,21.1135,135.0,134.95,3.3346]
[1726154252056,21.1135,135.0,134.95,7.02596576]
[1726154252259,17.78,135.0,134.94,3.78437247]
[1726154252465,3.3332,135.01,134.95,3.3345]
[1726154252764,17.78,135.02,134.95,6.95546228]
[1726154252965,17.78,135.02,134.95,3.3345]
[1726154253367,3.3336,135.0,134.95,3.3345]
[1726154253570,3.3336,135.0,134.95,7.0958987]
[1726154254160,3.3337,134.99,134.95,3.3345]
[1726154254358,3.3337,134.99,134.95,7.07663038]
[1726154254575,3.3337,134.99,134.95,3.3345]
[1726154255068,3.3335,135.0,134.96,3.3344]
[1726154255567,3.3335,135.0,134.95,3.3346]
[1726154256363,3.3335,135.0,134.95,6.99409892]
[1726154257165,17.78,135.02,134.95,3.65949892]
[1726154257377,2.0082,135.04,134.94,17.78]
[1726154257378,19.7882,135.04,134.94,17.78]
[1726154257557,19.7882,135.04,134.94,21.49915661]
[1726154257873,3.3327,135.04,134.94,21.49915661]
[1726154258569,17.78,135.04,134.94,21.49915661]
[1726154258959,3.3334,135.01,134.96,3.3343]
[1726154259160,17.78,135.04,134.94,21.49915661]
[1726154260470,17.78,135.04,134.96,3.3343]
[1726154260471,3.3334,135.01,134.96,3.3343]
[1726154260656,17.78,135.04,134.94,21.49915661]
[1726154261165,3.3335,135.0,134.95,3.3346]
[1726154261663,3.3335,135.0,134.96,3.3343]
[1726154261868,3.3335,135.0,134.93,2.0521]
[1726154262264,17.78,135.02,134.94,3.3348]
[1726154262660,17.78,135.02,134.93,2.0521]
[1726154262861,3.3341,134.98,134.93,5.3871]
[1726154263262,3.3341,134.98,134.93,2.0521]
[1726154263461,17.78,135.02,134.93,2.0521]
[1726154263675,17.78,135.02,134.94,3.61218138]
[1726154263862,17.78,135.02,134.93,2.0521]
[1726154264062,3.3336,135.0,134.96,3.3343]
[1726154264285,17.78,135.02,134.96,3.3343]
[1726154264566,3.3334,135.01,134.96,3.3343]
[1726154264871,17.78,135.02,134.96,3.3343]
[1726154265074,3.3336,135.0,134.95,3.3346]
[1726154265564,3.3336,135.0,134.94,3.77038292]
[1726154265763,17.78,135.02,134.93,2.0521]
[1726154266267,3.3341,134.98,134.93,2.0521]
[1726154266665,3.3341,134.98,134.94,3.3348]
[1726154266966,3.3341,134.98,134.93,2.0521]
[1726154266967,3.3338,134.99,134.93,2.0521]
[1726154267173,17.78,135.02,134.93,2.0521]
[1726154267473,3.334,134.98,134.94,3.3348]
[1726154268176,3.3342,134.97,134.93,5.3872]
[1726154268370,17.78,135.02,134.93,2.0521]
[1726154268765,17.78,135.0,134.93,5.3872]
[1726154269070,17.78,135.0,134.93,3.3351]
[1726154269269,3.3341,134.98,134.93,3.3351]
[1726154269470,17.78,135.0,134.92,3.8731]
[1726154269878,3.3343,134.97,134.92,3.8731]
[1726154270179,17.78,135.0,134.94,3.3349]
[1726154270486,3.3341,134.98,134.92,3.8731]
[1726154270779,3.3341,134.98,134.93,3.335]
[1726154270979,17.78,135.0,134.92,3.8731]
[1726154271173,3.71868978,134.99,134.92,3.8731]
[1726154271375,3.3345,134.96,134.92,3.8731]
[1726154271674,17.78,134.98,134.88,19.831]
[1726154271869,17.78,134.98,134.88,23.8762]
[1726154272063,17.78,134.98,134.91,3.3355]
[1726154272064,3.3345,134.96,134.91,3.3355]
[1726154272269,17.78,134.98,134.88,23.8762]
[1726154272665,3.3342,134.97,134.91,3.3354]
[1726154273174,3.3344,134.96,134.91,3.3354]
[1726154273783,17.78,134.98,134.88,23.8762]
[1726154273982,3.3347,134.95,134.9,3.3358]
[1726154274380,3.3345,134.96,134.9,3.3358]
[1726154274572,3.3345,134.96,134.91,3.3356]
[1726154274876,21.114,134.98,134.88,23.8762]
[1726154275080,17.78,134.98,134.92,3.3352]
[1726154275581,9.72918978,134.99,134.94,3.3349]
[1726154275782,17.78,135.0,134.9,17.78]
[1726154276080,17.78,135.0,134.93,3.3352]
[1726154276678,3.3341,134.98,134.93,3.3352]
[1726154277474,17.78,134.98,134.88,6.0962]
[1726154278078,3.3344,134.97,134.92,3.3354]
[1726154278686,21.1141,134.98,134.93,3.3351]
[1726154279097,3.3341,134.98,134.93,3.3351]
[1726154279597,3.3342,134.97,134.92,3.3353]
[1726154279792,17.78,134.98,134.88,6.0962]
[1726154280187,14.7246,134.96,134.91,3.3355]
[1726154281498,11.39,134.96,134.92,3.3353]
[1726154281701,11.39,134.97,134.91,11.39]
[1726154281992,14.7242,134.97,134.93,3.3351]
[1726154283117,14.7245,134.96,134.92,3.3353]
[1726154283697,14.7243,134.97,134.92,3.3353]
[1726154283890,11.39,134.97,134.92,3.3352]
[1726154284097,3.3333,135.01,134.95,11.39]
[1726154284296,11.39,135.01,134.95,11.39]
[1726154284604,11.39,135.01,134.97,3.3342]
[1726154284907,11.39,135.01,134.95,15.4092]
[1726154285098,11.39,135.01,134.97,3.3342]
[1726154285493,11.39,135.01,134.95,15.4092]
[1726154286092,17.78,135.04,134.95,4.0192]
[1726154286499,3.3331,135.02,134.97,3.334]
[1726154287211,3.3333,135.01,134.96,3.3343]
[1726154287995,3.3333,135.01,134.95,7.3538]
[1726154288208,3.3336,135.0,134.95,7.3538]
[1726154289428,3.3333,135.01,134.96,3.3343]
[1726154289909,17.78,135.02,134.95,4.0192]
[1726154290909,17.78,135.02,134.96,3.3342]
[1726154290910,3.3332,135.01,134.96,3.3342]
[1726154291204,17.78,135.02,134.95,4.0192]
[1726154291510,3.3336,135.0,134.95,7.3537]
[1726154291701,17.78,135.02,134.95,7.3537]
[1726154291901,3.3336,135.0,134.95,7.3537]
[1726154292924,3.3336,135.0,134.96,3.3344]
[1726154293518,3.3336,135.0,134.95,7.3538]
[1726154293709,3.3336,135.0,134.95,4.0192]
[1726154294415,3.3333,135.01,134.96,3.3344]
[1726154294714,3.3333,135.01,134.95,4.0192]
[1726154295312,3.3335,135.0,134.95,4.0192]
[1726154295511,3.63515115,134.99,134.89,2.0906]
[1726154295716,17.78,135.0,134.89,4.1531]
[1726154296420,3.3345,134.96,134.91,3.3355]
[1726154296615,3.62996443,134.99,134.89,4.1531]
[1726154296616,17.78,134.98,134.89,4.1531]
[1726154297018,3.3348,134.95,134.9,3.3359]
[1726154297313,23.41661129,134.98,134.89,4.1531]
[1726154297521,3.3352,134.94,134.89,4.1531]
[1726154297711,23.41661129,134.98,134.89,4.1531]
[1726154298111,3.3346,134.96,134.91,3.3356]
[1726154298312,3.3346,134.96,134.89,4.1531]
[1726154298520,23.41661129,134.98,134.89,4.1531]
[1726154298714,3.3349,134.95,134.89,7.4892]
[1726154298919,3.3349,134.95,134.89,4.1531]
[1726154299830,23.41661129,134.98,134.89,4.1531]
[1726154300015,3.3345,134.96,134.89,4.1531]
[1726154300419,3.3343,134.97,134.91,3.3355]
[1726154300614,3.3343,134.97,134.9,17.78]
[1726154301120,17.78,135.0,134.9,17.78]
[1726154301520,3.3338,134.99,134.93,3.335]
[1726154302019,17.78,135.0,134.93,3.335]
[1726154302210,3.334,134.98,134.93,3.335]
[1726154303415,3.3339,134.99,134.93,3.335]
[1726154303620,3.3339,134.99,134.9,17.78]
[1726154303621,3.3339,134.99,134.94,3.3349]
[1726154304526,21.1136,135.0,134.9,17.78]
[1726154304825,21.1136,135.0,134.92,17.78]
[1726154304826,3.3336,135.0,134.92,17.78]
[1726154305026,3.3336,135.0,134.94,3.3348]
[1726154305413,3.3336,135.0,134.94,3.63309619]
[1726154305620,17.78,135.02,134.92,17.78]
[1726154305918,21.6803,135.04,134.94,17.78]
[1726154306118,3.3334,135.01,134.96,3.3343]
[1726154306324,17.78,135.02,134.95,4.1417]
[1726154306732,3.3335,135.0,134.95,7.4762]
[1726154308027,3.3337,134.99,134.95,4.1417]
[1726154308225,17.78,135.02,134.92,17.78]
[1726154308535,3.3341,134.98,134.93,3.335]
[1726154308730,3.9003,135.04,134.93,3.335]
[1726154308731,17.78,135.0,134.93,3.335]
[1726154309034,3.3342,134.97,134.92,3.3354]
[1726154309335,17.78,135.0,134.92,3.3354]
[1726154309931,17.78,135.0,134.9,4.0591]
[1726154310129,17.78,134.98,134.9,4.0591]
[1726154310323,3.3344,134.97,134.92,3.3353]
[1726154310730,17.78,134.98,134.92,3.3353]
[1726154310926,3.3345,134.96,134.91,3.3356]
[1726154311424,21.114,134.98,134.9,4.0591]
[1726154311836,3.334,134.98,134.9,4.0591]
[1726154312226,17.78,135.0,134.9,4.0591]
[1726154312627,17.78,135.0,134.93,3.335]
[1726154312926,3.3341,134.98,134.93,3.335]
[1726154313131,17.78,135.0,134.9,4.0591]
[1726154313132,17.78,135.0,134.94,3.3349]
[1726154313351,17.78,135.0,134.9,4.0591]
[1726154313637,17.78,135.02,134.91,17.78]
[1726154314035,3.3336,135.0,134.91,17.78]
[1726154314232,17.78,135.02,134.91,17.78]
[1726154315835,17.78,135.0,134.9,21.8391]
[1726154316238,3.9003,135.04,134.92,17.78]
[1726154316426,17.78,135.03,134.92,17.78]
[1726154316630,3.3331,135.02,134.94,17.78]
[1726154316937,3.3331,135.02,134.94,21.46109069]
[1726154317130,17.78,135.03,134.94,21.46109069]
[1726154317843,3.3333,135.01,134.96,3.3343]
[1726154318635,3.3336,135.0,134.95,3.3347]
[1726154318838,17.78,135.01,134.92,17.78]
[1726154319255,3.3339,134.99,134.94,3.3348]
[1726154319644,17.78,135.01,134.94,3.3348]
[1726154319847,17.78,135.01,134.95,3.3345]
[1726154320041,17.78,135.01,134.9,21.8391]
[1726154320249,17.78,134.99,134.9,4.0591]
[1726154320644,3.334,134.98,134.93,3.335]
[1726154324444,21.53101889,134.99,134.9,4.0591]
[1726154324642,17.78,134.97,134.9,4.0591]
[1726154325249,3.3348,134.95,134.9,7.3949]
[1726154325549,17.78,134.97,134.9,4.0591]
[1726154325874,17.78,134.95,134.87,3.63272565]
[1726154326035,17.78,134.95,134.86,1.989]
[1726154326235,5.8829,134.98,134.86,5.3257]
[1726154326236,17.78,134.93,134.86,5.3257]
[1726154326446,17.78,134.93,134.86,5.707311]
[1726154327146,3.3349,134.94,134.86,5.707311]
[1726154327351,17.78,134.95,134.86,5.707311]
[1726154327653,3.335,134.94,134.88,3.3364]
[1726154327859,17.78,134.95,134.88,3.3364]
[1726154328259,3.3351,134.94,134.88,3.3364]
[1726154330364,17.78,134.95,134.87,3.3365]
[1726154331145,17.78,134.95,134.88,3.3364]
[1726154332343,3.3353,134.93,134.88,3.3364]
[1726154333152,3.3353,134.93,134.86,5.707311]
[1726154333153,3.3355,134.92,134.86,5.707311]
[1726154333356,3.3355,134.92,134.87,3.3366]
[1726154333658,17.78,134.93,134.86,5.707311]
[1726154333843,21.1153,134.93,134.88,3.3364]
[1726154334047,17.78,134.9,134.76,6.6786]
[1726154334352,17.78,134.88,134.81,3.8777]
[1726154334852,17.78,134.9,134.81,3.8777]
[1726154335051,17.78,134.9,134.81,21.6577]
[1726154335448,5.7989,134.92,134.81,21.6577]
[1726154336158,11.39,134.89,134.83,11.39]
[1726154336344,3.3365,134.88,134.83,14.7276]
[1726154336546,11.39,134.87,134.83,3.3376]
[1726154337064,5.7989,134.92,134.67,10.0248]
[1726154337065,3.3375,134.84,134.67,10.0248]
[1726154337368,3.3375,134.84,134.73,4.0326]
[1726154337661,3.3375,134.84,134.78,3.3387]
[1726154337853,3.3375,134.84,134.79,3.714032]
[1726154338250,3.3375,134.84,134.79,3.3386]
[1726154338560,3.3377,134.83,134.79,3.62020772]
[1726154338744,3.3377,134.83,134.75,17.81]
[1726154339762,3.3377,134.83,134.77,3.339]
[1726154339955,3.338,134.82,134.78,3.62139307]
[1726154340156,17.81,134.85,134.78,6.96029307]
[1726154340355,17.81,134.85,134.78,3.3389]
[1726154340762,17.81,134.85,134.77,3.3389]
[1726154341171,3.3381,134.82,134.77,3.3389]
[1726154341549,17.81,134.83,134.78,3.3388]
[1726154342159,21.1477,134.83,134.78,3.3388]
[1726154342757,17.81,134.83,134.79,3.3385]
[1726154342959,17.81,134.83,134.73,21.8426]
[1726154343652,17.81,134.83,134.79,3.3385]
[1726154343858,17.81,134.83,134.79,6.9901062]
[1726154344469,3.337,134.86,134.81,3.3381]
[1726154344657,17.81,134.88,134.8,3.8599]
[1726154344857,17.81,134.88,134.8,5.9472]
[1726154345153,17.81,134.89,134.81,17.81]
[1726154345358,17.81,134.91,134.81,17.81]
[1726154345561,17.81,134.93,134.87,3.3366]
[1726154346268,17.81,134.95,134.85,17.81]
[1726154346471,17.81,134.95,134.86,5.8249]
[1726154347368,3.3351,134.94,134.88,3.3362]
[1726154347568,3.3351,134.94,134.88,7.04244443]
[1726154347767,3.3351,134.94,134.89,3.3362]
[1726154347968,880.54822,134.9,134.88,3.70624443]
[1726154348272,874.27842,134.9,134.87,17.81]
[1726154348567,874.27842,134.9,134.89,3.3362]
[1726154348773,874.27842,134.9,134.89,7.12233787]
[1726154348958,858.60362,134.9,134.89,7.12233787]
[1726154349163,858.60362,134.9,134.89,3.78613787]
[1726154349365,858.60362,134.9,134.87,17.81]
[1726154350160,858.60362,134.9,134.88,3.3364]
[1726154350377,858.60362,134.9,134.87,21.51941438]
[1726154350775,851.19672,134.9,134.89,3.3362]
[1726154350988,848.92602,134.9,134.89,3.3362]
[1726154351465,848.92602,134.9,134.89,6.97593313]
[1726154352173,761.53602001,134.9,134.89,3.3362]
[1726154352360,761.53602001,134.9,134.89,10.7542]
[1726154352768,761.53602001,134.9,134.89,14.48576451]
[1726154353871,761.53602001,134.9,134.89,7.06776451]
[1726154354966,761.53602001,134.9,134.81,7.418]
[1726154355162,3.9198,134.89,134.81,25.228]
[1726154355570,3.9198,134.89,134.82,3.3378]
[1726154355967,3.3366,134.88,134.82,3.3378]
[1726154356169,3.9198,134.89,134.82,3.3379]
[1726154356569,3.3366,134.88,134.82,3.3379]
[1726154357269,7.2561,134.89,134.83,3.3376]
[1726154358372,3.3364,134.88,134.83,3.3376]
[1726154359176,3.9198,134.89,134.84,3.3374]
[1726154359974,3.9198,134.89,134.84,7.07117827]
[1726154360176,3.9198,134.89,134.84,3.3374]
[1726154360562,3.9198,134.89,134.84,3.65888023]
[1726154360770,3.9198,134.89,134.79,17.81]
[1726154360969,7.2561,134.89,134.79,21.51263255]
[1726154361171,7.2561,134.89,134.83,3.3375]
[1726154362278,3.3364,134.88,134.82,3.3379]
[1726154362665,3.3364,134.88,134.81,3.338]
[1726154362870,3.3364,134.88,134.79,21.51263255]
[1726154363072,25.0661,134.89,134.79,21.51263255]
[1726154363473,21.7298,134.89,134.79,21.51263255]
[1726154363984,3.9198,134.89,134.81,17.81]
[1726154364374,3.9198,134.89,134.86,3.3369]
[1726154364581,3.9198,134.89,134.86,7.1122967]
[1726154365083,2.0087,134.92,134.87,3.3365]
[1726154365277,3.9433,134.92,134.86,3.7753967]
[1726154365575,3.9433,134.92,134.87,3.3366]
[1726154365780,3.9433,134.92,134.83,17.81]
[1726154365973,3.3358,134.91,134.85,3.3371]
[1726154366586,7.2788,134.92,134.86,3.3369]
[1726154367083,3.9433,134.92,134.87,3.3366]
[1726154367285,3.9433,134.92,134.83,17.81]
[1726154367674,1.9346,134.92,134.85,17.81]
[1726154368178,1.9346,134.92,134.89,3.3362]
[1726154368371,1.9346,134.92,134.89,3.66123054]
[1726154368583,1.9346,134.92,134.85,17.81]
[1726154369169,1.9346,134.92,134.88,3.3363]
[1726154369382,1.9346,134.92,134.89,3.69940696]
[1726154369581,2.0087,134.95,134.88,17.81]
[1726154369777,2.0087,134.95,134.9,3.3357]
[1726154369981,2.0087,134.95,134.9,6.99915441]
[1726154371589,2.0087,134.95,134.86,17.81]
[1726154371787,2.0087,134.95,134.86,21.56815816]
[1726154372875,3.3351,134.94,134.88,3.3363]
[1726154373076,2.0087,134.95,134.86,21.56815816]
[1726154373586,5.3434,134.95,134.89,3.3359]
[1726154374084,3.335,134.94,134.88,3.3363]
[1726154375182,3.3353,134.93,134.86,3.75815816]
[1726154375382,3.3353,134.93,134.84,17.81]
[1726154375590,2.0235,134.92,134.84,17.81]
[1726154375790,2.0235,134.92,134.87,3.3365]
[1726154375993,2.0235,134.92,134.88,3.65206433]
[1726154376690,2.0235,134.92,134.88,6.98836433]
[1726154377392,2.0235,134.92,134.88,3.65206433]
[1726154377685,2.077,134.94,134.89,17.81]
[1726154377890,2.0087,134.95,134.89,17.81]
[1726154378091,2.0087,134.95,134.92,3.3354]
[1726154378286,2.0087,134.95,134.89,17.81]
[1726154379190,2.0087,134.95,134.92,3.3353]
[1726154379393,2.0087,134.95,134.89,17.81]
[1726154379780,2.0087,134.95,134.88,3.67541323]